fUST/lending_fUST_20240902
["ID","MTS","AMOUNT","RATE_DAILY","PERIOD"]
[336934385,1725249043562,-500.0,0.00024657,2]
[336934387,1725249043571,-500.0,0.00024657,2]
[336934389,1725249043580,-500.0,0.00024657,2]
[336934391,1725249043590,-500.0,0.00024657,2]
[336934393,1725249043599,-500.0,0.00024657,2]
[336934395,1725249043608,-402.5374694,0.00024657,2]
[336934397,1725249043618,-500.0,0.00024657,2]
[336934399,1725249043628,-986.58,0.00024657,2]
[336934401,1725249043638,-500.0,0.00024657,2]
[336934403,1725249043649,-500.0,0.00024657,2]
[336934405,1725249043660,-500.0,0.00024657,2]
[336934407,1725249043669,-500.0,0.00024657,2]
[336934409,1725249043679,-641.19,0.00024657,2]
[336934411,1725249043689,-500.0,0.00024657,2]
[336934413,1725249043698,-500.0,0.00024657,2]
[336934415,1725249043708,-500.0,0.00024657,2]
[336934417,1725249043720,-667.78,0.00024657,2]
[336934419,1725249043729,-500.0,0.00024657,2]
[336934421,1725249043739,-500.0,0.00024657,2]
[336934423,1725249043751,-500.0,0.00024657,2]
[336934425,1725249043762,-500.0,0.00024657,2]
[336934426,1725249043774,-1205.64,0.00024657,2]
[336934427,1725249043784,-682.78,0.00024657,2]
[336934428,1725249043793,-503.21397657,0.00024657,2]
[336934429,1725249043805,-567.4,0.00024657,2]
[336934430,1725249043815,-500.0,0.00024657,2]
[336934431,1725249043826,-783.38,0.00024657,2]
[336934432,1725249043836,-500.0,0.00024657,2]
[336934433,1725249043848,-5865.09,0.00024657,2]
[336934434,1725249043859,-500.0,0.00024657,2]
[336934435,1725249043871,-500.0,0.00024657,2]
[336934436,1725249043883,-500.0,0.00024657,2]
[336934437,1725249043895,-1139.46,0.00024657,2]
[336934438,1725249043906,-500.0,0.00024657,2]
[336934439,1725249043915,-500.0,0.00024657,2]
[336934440,1725249043926,-441.04344747,0.00024657,2]
[336934441,1725249043935,-500.0,0.00024657,2]
[336934442,1725249043945,-1135.19,0.00024657,2]
[336934443,1725249043955,-500.0,0.00024657,2]
[336934444,1725249043964,-563.65,0.00024657,2]
[336934445,1725249043973,-500.0,0.00024657,2]
[336934446,1725249043982,-573.57,0.00024657,2]
[336934447,1725249043992,-503.74499091,0.00024657,2]
[336934448,1725249044007,-500.0,0.00024657,2]
[336934449,1725249044018,-1475.14,0.00024657,2]
[336934450,1725249044028,-1286.38,0.00024657,2]
[336934451,1725249044038,-500.0,0.00024657,2]
[336934452,1725249044064,-2656.81,0.00024657,2]
[336934453,1725249044074,-1029.26,0.00024657,2]
[336934454,1725249044084,-950.45,0.00024657,2]
[336934455,1725249044094,-500.0,0.00024657,2]
[336934456,1725249044104,-507.13570586,0.00024657,2]
[336934457,1725249044114,-500.0,0.00024657,2]
[336934458,1725249044125,-500.0,0.00024657,2]
[336934459,1725249044136,-500.0,0.00024657,2]
[336934460,1725249044147,-500.0,0.00024657,2]
[336934461,1725249044156,-978.3,0.00024657,2]
[336934462,1725249044167,-500.0,0.00024657,2]
[336934463,1725249044176,-6599.17,0.00024657,2]
[336934464,1725249044185,-953.68,0.00024657,2]
[336934465,1725249044195,-2088.11,0.00024657,2]
[336934466,1725249044204,-1472.52,0.00024657,2]
[336934467,1725249044214,-500.0,0.00024657,2]
[336934468,1725249044223,-500.0,0.00024657,2]
[336934469,1725249044232,-500.0,0.00024657,2]
[336934470,1725249044242,-505.84427358,0.00024657,2]
[336934471,1725249044254,-909.08,0.00024657,2]
[336934472,1725249044266,-500.0,0.00024657,2]
[336934473,1725249044276,-907.65,0.00024657,2]
[336934474,1725249044286,-500.0,0.00024657,2]
[336934475,1725249044296,-500.0,0.00024657,2]
[336934476,1725249044306,-532.49732858,0.00024657,2]
[336934477,1725249044316,-500.0,0.00024657,2]
[336934478,1725249044330,-500.0,0.00024657,2]
[336934479,1725249044341,-500.0,0.00024657,2]
[336934480,1725249044351,-500.0,0.00024657,2]
[336934481,1725249044363,-1067.75,0.00024657,2]
[336934482,1725249044373,-1067.75,0.00024657,2]
[336934483,1725249044384,-1067.75,0.00024657,2]
[336934484,1725249044394,-1067.75,0.00024657,2]
[336934485,1725249044404,-1067.75,0.00024657,2]
[336934486,1725249044415,-1067.75,0.00024657,2]
[336934487,1725249044425,-500.0,0.00024657,2]
[336934488,1725249044436,-1067.75,0.00024657,2]
[336934489,1725249044447,-1067.75,0.00024657,2]
[336934490,1725249044457,-1067.75,0.00024657,2]
[336934491,1725249044466,-1077.12,0.00024657,2]
[336934492,1725249044476,-1067.75,0.00024657,2]
[336934493,1725249044486,-1067.75,0.00024657,2]
[336934494,1725249044497,-500.0,0.00024657,2]
[336934495,1725249044508,-500.0,0.00024657,2]
[336934496,1725249044519,-500.0,0.00024657,2]
[336934497,1725249044530,-500.0,0.00024657,2]
[336934498,1725249044540,-872.02,0.00024657,2]
[336934499,1725249044550,-500.0,0.00024657,2]
[336934500,1725249044560,-500.0,0.00024657,2]
[336934501,1725249044569,-502.77470919,0.00024657,2]
[336934502,1725249044578,-868.77,0.00024657,2]
[336934503,1725249044588,-500.0,0.00024657,2]
[336934504,1725249044598,-500.0,0.00024657,2]
[336934505,1725249044607,-460.69700446,0.00024657,2]
[336934506,1725249044616,-1411.93,0.00024657,2]
[336934507,1725249044628,-380.0,0.00024658,2]
[336934508,1725249044640,-200.0,0.00024658,15]
[336934509,1725249044652,-881.896692,0.00024658,2]
[336934510,1725249044662,-881.896692,0.00024658,2]
[336934511,1725249044672,-881.896692,0.00024658,2]
[336934512,1725249044683,-881.896692,0.00024658,2]
[336934513,1725249044693,-881.896692,0.00024658,2]
[336934514,1725249044703,-881.896692,0.00024658,2]
[336934515,1725249044711,-881.896692,0.00024658,2]
[336934516,1725249044721,-881.896692,0.00024658,2]
[336934517,1725249044731,-881.896692,0.00024658,2]
[336934518,1725249044740,-881.896692,0.00024658,2]
[336934519,1725249044749,-881.896692,0.00024658,2]
[336934520,1725249044759,-881.896692,0.00024658,2]
[336934521,1725249044768,-881.896692,0.00024658,2]
[336934522,1725249044777,-881.896692,0.00024658,2]
[336934523,1725249044786,-881.896692,0.00024658,2]
[336934524,1725249044795,-881.896692,0.00024658,2]
[336934525,1725249044804,-881.896692,0.00024658,2]
[336934526,1725249044813,-881.896692,0.00024658,2]
[336934527,1725249044823,-881.896692,0.00024658,2]
[336934528,1725249044832,-881.896692,0.00024658,2]
[336934529,1725249044841,-881.896692,0.00024658,2]
[336934530,1725249044851,-881.896692,0.00024658,2]
[336934531,1725249044860,-881.896692,0.00024658,2]
[336934532,1725249044871,-881.896692,0.00024658,2]
[336934533,1725249044880,-881.896692,0.00024658,2]
[336934534,1725249044890,-881.896692,0.00024658,2]
[336934535,1725249044899,-881.896692,0.00024658,2]
[336934536,1725249044908,-881.896692,0.00024658,2]
[336934537,1725249044918,-881.896692,0.00024658,2]
[336934538,1725249044927,-881.896692,0.00024658,2]
[336934539,1725249044937,-881.896692,0.00024658,2]
[336934540,1725249044947,-881.896692,0.00024658,2]
[336934541,1725249044959,-881.896692,0.00024658,2]
[336934542,1725249044969,-881.896692,0.00024658,2]
[336934543,1725249044978,-881.896692,0.00024658,2]
[336934544,1725249044988,-881.896692,0.00024658,2]
[336934545,1725249044999,-881.896692,0.00024658,2]
[336934546,1725249045012,-881.896692,0.00024658,2]
[336934547,1725249045023,-881.896692,0.00024658,2]
[336934548,1725249045034,-881.896692,0.00024658,2]
[336934549,1725249045043,-881.896692,0.00024658,2]
[336934550,1725249045054,-881.896692,0.00024658,2]
[336934551,1725249045064,-881.896692,0.00024658,2]
[336934552,1725249045075,-881.896692,0.00024658,2]
[336934553,1725249045087,-881.896692,0.00024658,2]
[336934554,1725249045096,-881.896692,0.00024658,2]
[336934555,1725249045107,-881.896692,0.00024658,2]
[336934556,1725249045116,-869.29816782,0.00024658,2]
[336934557,1725249045125,-869.29816782,0.00024658,2]
[336934558,1725249045134,-869.29816782,0.00024658,2]
[336934559,1725249045143,-869.29816782,0.00024658,2]
[336934560,1725249045152,-869.29816782,0.00024658,2]
[336934561,1725249045162,-869.29816782,0.00024658,2]
[336934562,1725249045171,-869.29816782,0.00024658,2]
[336934563,1725249045180,-869.29816782,0.00024658,2]
[336934564,1725249045189,-869.29816782,0.00024658,2]
[336934565,1725249045198,-869.29816782,0.00024658,2]
[336934566,1725249045207,-869.29816782,0.00024658,2]
[336934567,1725249045217,-869.29816782,0.00024658,2]
[336934568,1725249045226,-869.29816782,0.00024658,2]
[336934569,1725249045235,-869.29816782,0.00024658,2]
[336934570,1725249045244,-869.29816782,0.00024658,2]
[336934571,1725249045253,-869.29816782,0.00024658,2]
[336934572,1725249045262,-869.29816782,0.00024658,2]
[336934573,1725249045271,-869.29816782,0.00024658,2]
[336934574,1725249045280,-869.29816782,0.00024658,2]
[336934575,1725249045290,-869.29816782,0.00024658,2]
[336934576,1725249045299,-869.29816782,0.00024658,2]
[336934577,1725249045308,-869.29816782,0.00024658,2]
[336934578,1725249045317,-869.29816782,0.00024658,2]
[336934579,1725249045326,-869.29816782,0.00024658,2]
[336934580,1725249045335,-869.29816782,0.00024658,2]
[336934581,1725249045344,-869.29816782,0.00024658,2]
[336934582,1725249045353,-869.29816782,0.00024658,2]
[336934583,1725249045362,-869.29816782,0.00024658,2]
[336934584,1725249045371,-869.29816782,0.00024658,2]
[336934585,1725249045381,-869.29816782,0.00024658,2]
[336934586,1725249045390,-869.29816782,0.00024658,2]
[336934587,1725249045399,-869.29816782,0.00024658,2]
[336934588,1725249045409,-869.29816782,0.00024658,2]
[336934589,1725249045419,-869.29816782,0.00024658,2]
[336934590,1725249045428,-869.29816784,0.00024658,2]
[336934591,1725249045437,-869.29816784,0.00024658,2]
[336934592,1725249045447,-869.29816784,0.00024658,2]
[336934593,1725249045456,-869.29816784,0.00024658,2]
[336934594,1725249045465,-869.29816784,0.00024658,2]
[336934595,1725249045475,-869.29816784,0.00024658,2]
[336934596,1725249045484,-869.29816784,0.00024658,2]
[336934597,1725249045493,-869.29816784,0.00024658,2]
[336934598,1725249045502,-500.0,0.00024673,2]
[336934599,1725249045511,-500.0,0.00024673,2]
[336934600,1725249045521,-1143.58939758,0.00024763,2]
[336934601,1725249045531,-1054.24098364,0.00024821,3]
[336934602,1725249045544,-1067.75,0.0002483,2]
[336934603,1725249045554,-1569.87576558,0.00024831,2]
[336934604,1725249045564,-4216.96393456,0.00024921,3]
[336934605,1725249045574,-500.0,0.0002493,2]
[336934606,1725249045583,-500.0,0.0002493,2]
[336934607,1725249045593,-500.0,0.0002493,2]
[336934608,1725249045603,-500.0,0.0002493,2]
[336934609,1725249045612,-500.0,0.0002493,2]
[336934610,1725249045621,-500.0,0.0002493,2]
[336934611,1725249045631,-500.0,0.0002493,2]
[336934612,1725249045641,-500.0,0.0002493,2]
[336934613,1725249045771,-500.0,0.0002493,2]
[336934614,1725249045780,-500.0,0.0002493,2]
[336934615,1725249045789,-557.92,0.0002493,2]
[336934616,1725249045798,-539.43,0.0002493,2]
[336934617,1725249045807,-1067.75,0.0002493,2]
[336934618,1725249045816,-1067.75,0.0002493,2]
[336934619,1725249045826,-1067.75,0.0002493,2]
[336934620,1725249045835,-1067.75,0.0002493,2]
[336934621,1725249045844,-1067.75,0.0002493,2]
[336934622,1725249045854,-503.86991175,0.00024931,2]
[336934623,1725249045863,-500.0,0.00024931,2]
[336934624,1725249045872,-500.0,0.00024931,2]
[336934625,1725249045882,-296.30526398,0.00024931,2]
[336934626,1725249045891,-500.0,0.00024931,2]
[336934627,1725249045900,-500.0,0.00024931,2]
[336934628,1725249045910,-500.0,0.00024931,2]
[336934629,1725249045921,-211.74534788,0.00024931,2]
[336934630,1725249045930,-500.0,0.00024931,2]
[336934631,1725249045939,-500.0,0.00024931,2]
[336934632,1725249045948,-526.53,0.00024931,2]
[336934633,1725249045958,-337.88855092,0.00024931,2]
[336934634,1725249045967,-269.24649168,0.00024931,2]
[336934635,1725249045977,-500.0,0.00024931,2]
[336934636,1725249045986,-205.2154164,0.00024931,2]
[336934637,1725249045995,-500.0,0.00024931,2]
[336934638,1725249046007,-500.0,0.00024931,2]
[336934639,1725249046016,-500.0,0.00024931,2]
[336934640,1725249046026,-366.88312887,0.00024931,2]
[336934641,1725249046035,-500.0,0.00024931,2]
[336934642,1725249046046,-500.0,0.00024931,2]
[336934643,1725249046057,-500.0,0.00024931,2]
[336934644,1725249046067,-727.4,0.00024931,2]
[336934645,1725249046078,-500.0,0.00024931,2]
[336934646,1725249046087,-559.34218101,0.00024931,2]
[336934647,1725249046099,-500.0,0.00024931,2]
[336934648,1725249046110,-500.0,0.00024931,2]
[336934649,1725249046121,-488.83665506,0.00024931,2]
[336934650,1725249046131,-500.0,0.00024931,2]
[336934651,1725249046142,-505.60656397,0.00024931,2]
[336934652,1725249046152,-586.14964997,0.00024931,2]
[336934653,1725249046162,-500.0,0.00024931,2]
[336934654,1725249046172,-500.0,0.00024931,2]
[336934655,1725249046181,-500.0,0.00024931,2]
[336934656,1725249046190,-500.0,0.00024931,2]
[336934657,1725249046200,-500.0,0.00024931,2]
[336934658,1725249046209,-500.0,0.00024931,2]
[336934659,1725249046218,-500.0,0.00024931,2]
[336934660,1725249046228,-503.48375252,0.00024931,2]
[336934661,1725249046237,-500.0,0.00024931,2]
[336934662,1725249046247,-500.0,0.00024931,2]
[336934663,1725249046256,-500.0,0.00024931,2]
[336934664,1725249046266,-500.0,0.00024931,2]
[336934665,1725249046275,-500.0,0.00024931,2]
[336934666,1725249046284,-500.0,0.00024931,2]
[336934667,1725249046294,-500.0,0.00024931,2]
[336934668,1725249046304,-500.0,0.00024931,2]
[336934669,1725249046313,-500.0,0.00024931,2]
[336934670,1725249046323,-507.08424322,0.00024931,2]
[336934671,1725249046332,-515.85,0.00024931,2]
[336934672,1725249046342,-500.0,0.00024931,2]
[336934673,1725249046351,-500.0,0.00024931,2]
[336934674,1725249046361,-500.0,0.00024931,2]
[336934675,1725249046370,-500.0,0.00024931,2]
[336934676,1725249046380,-500.0,0.00024931,2]
[336934677,1725249046389,-500.0,0.00024931,2]
[336934678,1725249046399,-500.0,0.00024931,2]
[336934679,1725249046409,-500.0,0.00024931,2]
[336934680,1725249046420,-500.0,0.00024931,2]
[336934681,1725249046430,-500.0,0.00024931,2]
[336934682,1725249046439,-500.0,0.00024931,2]
[336934683,1725249046448,-503.86842878,0.00024931,2]
[336934684,1725249046457,-501.68855469,0.00024931,2]
[336934685,1725249046466,-500.0,0.00024931,2]
[336934686,1725249046476,-512.53,0.00024931,2]
[336934687,1725249046485,-500.0,0.00024931,2]
[336934688,1725249046494,-500.0,0.00024931,2]
[336934689,1725249046503,-513.57387618,0.00024931,2]
[336934690,1725249046513,-500.0,0.00024931,2]
[336934691,1725249046522,-500.0,0.00024931,2]
[336934692,1725249046532,-500.0,0.00024931,2]
[336934693,1725249046542,-500.0,0.00024931,2]
[336934694,1725249046551,-500.0,0.00024931,2]
[336934695,1725249046560,-500.0,0.00024931,2]
[336934696,1725249046569,-500.0,0.00024931,2]
[336934697,1725249046578,-500.0,0.00024931,2]
[336934698,1725249046587,-500.0,0.00024931,2]
[336934699,1725249046596,-500.0,0.00024931,2]
[336934700,1725249046606,-633.21,0.00024931,2]
[336934701,1725249046615,-500.0,0.00024931,2]
[336934702,1725249046624,-500.0,0.00024931,2]
[336934703,1725249046633,-500.0,0.00024931,2]
[336934704,1725249046643,-495.4412473,0.00024931,2]
[336934705,1725249046652,-548.21,0.00024931,2]
[336934706,1725249046664,-509.77,0.00024931,2]
[336934707,1725249046675,-504.25,0.00024931,2]
[336934708,1725249046685,-500.0,0.00024931,2]
[336934709,1725249046694,-619.97,0.00024931,2]
[336934710,1725249046703,-500.0,0.00024931,2]
[336934711,1725249046712,-500.0,0.00024931,2]
[336934712,1725249046722,-485.12013036,0.00024931,2]
[336934713,1725249046731,-500.0,0.00024931,2]
[336934714,1725249046740,-500.0,0.00024931,2]
[336934715,1725249046751,-358.59328275,0.00024931,2]
[336934716,1725249046761,-500.0,0.00024931,2]
[336934717,1725249046770,-500.0,0.00024931,2]
[336934718,1725249046779,-517.04130698,0.00024931,2]
[336934719,1725249046788,-500.0,0.00024931,2]
[336934720,1725249046797,-500.0,0.00024931,2]
[336934721,1725249046808,-500.0,0.00024931,2]
[336934722,1725249046817,-2506.17,0.00024931,2]
[336934723,1725249046826,-500.0,0.00024931,2]
[336934724,1725249046835,-533.07142725,0.00024931,2]
[336934725,1725249046845,-500.0,0.00024931,2]
[336934726,1725249046854,-500.0,0.00024931,2]
[336934727,1725249046863,-500.0,0.00024931,2]
[336934728,1725249046873,-500.0,0.00024931,2]
[336934729,1725249046882,-851.76,0.00024931,2]
[336934730,1725249046893,-500.0,0.00024931,2]
[336934731,1725249046902,-500.0,0.00024931,2]
[336934732,1725249046915,-500.0,0.00024931,2]
[336934733,1725249046930,-500.0,0.00024931,2]
[336934734,1725249046941,-500.0,0.00024931,2]
[336934735,1725249046950,-500.0,0.00024931,2]
[336934736,1725249046959,-500.0,0.00024931,2]
[336934737,1725249046968,-503.13671639,0.00024931,2]
[336934738,1725249046977,-500.0,0.00024931,2]
[336934739,1725249046986,-452.44250149,0.00024931,2]
[336934740,1725249046996,-500.0,0.00024931,2]
[336934741,1725249047011,-500.0,0.00024931,2]
[336934742,1725249047020,-546.87,0.00024931,2]
[336934743,1725249047030,-303.8127338,0.00024931,2]
[336934744,1725249047040,-592.83435881,0.00024931,2]
[336934745,1725249047050,-500.0,0.00024931,2]
[336934746,1725249047059,-513.46,0.00024931,2]
[336934747,1725249047069,-500.0,0.00024931,2]
[336934748,1725249047079,-500.0,0.00024931,2]
[336934749,1725249047090,-500.0,0.00024931,2]
[336934750,1725249047100,-500.0,0.00024931,2]
[336934751,1725249047110,-500.0,0.00024931,2]
[336934752,1725249047120,-500.0,0.00024931,2]
[336934753,1725249047130,-500.0,0.00024931,2]
[336934754,1725249047139,-511.89508418,0.00024931,2]
[336934755,1725249047149,-712.55,0.00024931,2]
[336934756,1725249047158,-500.0,0.00024931,2]
[336934757,1725249047174,-500.0,0.00024931,2]
[336934758,1725249047184,-587.88976229,0.00024931,2]
[336934759,1725249047193,-500.0,0.00024931,2]
[336934760,1725249047202,-500.0,0.00024931,2]
[336934761,1725249047212,-500.0,0.00024931,2]
[336934762,1725249047222,-509.28993497,0.00024931,2]
[336934763,1725249047232,-500.0,0.00024931,2]
[336934764,1725249047243,-500.0,0.00024931,2]
[336934765,1725249047253,-729.91,0.00024931,2]
[336934766,1725249047263,-500.0,0.00024931,2]
[336934767,1725249047272,-500.0,0.00024931,2]
[336934768,1725249047282,-677.23,0.00024931,2]
[336934769,1725249047292,-942.55,0.00024931,2]
[336934770,1725249047302,-608.45,0.00024931,2]
[336934771,1725249047312,-500.0,0.00024931,2]
[336934772,1725249047322,-679.75,0.00024931,2]
[336934773,1725249047332,-500.0,0.00024931,2]
[336934774,1725249047342,-116.29372099,0.00024931,2]
[336934775,1725249047650,-500.0,0.00024657,2]
[336934776,1725249047660,-500.0,0.00024657,2]
[336934777,1725249047674,-938.53627901,0.00024931,2]
[336934778,1725249047684,-500.0,0.00024931,2]
[336934779,1725249047694,-500.0,0.00024931,2]
[336934780,1725249047703,-500.0,0.00024931,2]
[336934781,1725249047713,-500.0,0.00024931,2]
[336934782,1725249047723,-500.0,0.00024931,2]
[336934783,1725249047733,-500.0,0.00024931,2]
[336934784,1725249047742,-1431.38,0.00024931,2]
[336934785,1725249047753,-500.0,0.00024931,2]
[336934786,1725249047763,-500.0,0.00024931,2]
[336934787,1725249047774,-1707.48,0.00024931,2]
[336934788,1725249047784,-210.05388561,0.00024931,2]
[336934789,1725249047793,-500.0,0.00024931,2]
[336934790,1725249047803,-691.37,0.00024931,2]
[336934791,1725249047814,-500.0,0.00024931,2]
[336934792,1725249047825,-500.0,0.00024931,2]
[336934793,1725249047835,-534.02,0.00024931,2]
[336934794,1725249047845,-2121.62,0.00024931,2]
[336934795,1725249047856,-500.0,0.00024931,2]
[336934796,1725249047866,-506.24544424,0.00024931,2]
[336934797,1725249047877,-500.0,0.00024931,2]
[336934798,1725249047887,-500.0,0.00024931,2]
[336934799,1725249047897,-515.24,0.00024931,2]
[336934800,1725249047907,-500.0,0.00024931,2]
[336934801,1725249047917,-500.0,0.00024931,2]
[336934802,1725249047926,-500.0,0.00024931,2]
[336934803,1725249047936,-9335.36,0.00024931,2]
[336934804,1725249047945,-500.0,0.00024931,2]
[336934805,1725249047956,-1024.21,0.00024931,2]
[336934806,1725249047965,-554.6,0.00024931,2]
[336934807,1725249047975,-1324.11,0.00024931,2]
[336934808,1725249047984,-1650.75,0.00024931,2]
[336934809,1725249047993,-500.0,0.00024931,2]
[336934810,1725249048003,-1286.68,0.00024931,2]
[336934811,1725249048016,-500.0,0.00024931,2]
[336934812,1725249048026,-500.0,0.00024931,2]
[336934813,1725249048035,-500.0,0.00024931,2]
[336934814,1725249048044,-514.17,0.00024931,2]
[336934815,1725249048054,-500.0,0.00024931,2]
[336934816,1725249048064,-2134.36,0.00024931,2]
[336934817,1725249048074,-500.0,0.00024931,2]
[336934818,1725249048085,-500.0,0.00024931,2]
[336934819,1725249048094,-305.72984482,0.00024931,2]
[336934820,1725249048104,-500.0,0.00024931,2]
[336934821,1725249048114,-500.0,0.00024931,2]
[336934822,1725249048124,-574.57,0.00024931,2]
[336934823,1725249048133,-925.72,0.00024931,2]
[336934824,1725249048143,-500.0,0.00024931,2]
[336934825,1725249048153,-500.10295904,0.00024931,2]
[336934826,1725249048163,-488.58025682,0.00024931,2]
[336934827,1725249048174,-1057.36,0.00024931,2]
[336934828,1725249048184,-964.51,0.00024931,2]
[336934829,1725249048194,-500.0,0.00024931,2]
[336934830,1725249048203,-530.59091496,0.00024931,2]
[336934831,1725249048213,-1025.99,0.00024931,2]
[336934832,1725249048223,-500.0,0.00024931,2]
[336934833,1725249048232,-500.0,0.00024931,2]
[336934834,1725249048242,-1247.7,0.00024931,2]
[336934835,1725249048251,-3786.83,0.00024931,2]
[336934836,1725249048261,-1234.24,0.00024931,2]
[336934837,1725249048271,-349.36606398,0.00024931,2]
[336934838,1725249048280,-500.0,0.00024931,2]
[336934839,1725249048290,-1030.83,0.00024931,2]
[336934840,1725249048300,-1461.26,0.00024931,2]
[336934841,1725249048436,-500.0,0.00024931,2]
[336934842,1725249048447,-500.0,0.00024931,2]
[336934843,1725249048456,-1972.57,0.00024931,2]
[336934844,1725249048466,-500.0,0.00024931,2]
[336934845,1725249048475,-500.0,0.00024931,2]
[336934846,1725249048484,-500.0,0.00024931,2]
[336934847,1725249048493,-1123.86,0.00024931,2]
[336934848,1725249048503,-500.0,0.00024931,2]
[336934849,1725249048512,-500.0,0.00024931,2]
[336934850,1725249048521,-932.45,0.00024931,2]
[336934851,1725249048531,-500.0,0.00024931,2]
[336934852,1725249048540,-771.97,0.00024931,2]
[336934853,1725249048550,-500.0,0.00024931,2]
[336934854,1725249048560,-968.5,0.00024931,2]
[336934855,1725249048570,-726.77,0.00024931,2]
[336934856,1725249048579,-500.0,0.00024931,2]
[336934857,1725249048589,-968.21,0.00024931,2]
[336934858,1725249048599,-758.26,0.00024931,2]
[336934859,1725249048608,-572.1840676,0.00024931,2]
[336934860,1725249048618,-500.0,0.00024931,2]
[336934861,1725249048629,-690.19,0.00024931,2]
[336934862,1725249048639,-500.78,0.00024931,2]
[336934863,1725249048650,-1384.36,0.00024931,2]
[336934864,1725249048660,-634.79847045,0.00024931,2]
[336934865,1725249048669,-986.58,0.00024931,2]
[336934866,1725249048678,-500.0,0.00024931,2]
[336934867,1725249048687,-500.0,0.00024931,2]
[336934868,1725249048697,-641.19,0.00024931,2]
[336934869,1725249048706,-500.0,0.00024931,2]
[336934870,1725249048715,-500.0,0.00024931,2]
[336934871,1725249048725,-667.78,0.00024931,2]
[336934872,1725249048735,-500.0,0.00024931,2]
[336934873,1725249048744,-1205.64,0.00024931,2]
[336934874,1725249048753,-682.78,0.00024931,2]
[336934875,1725249048764,-567.4,0.00024931,2]
[336934876,1725249048774,-783.38,0.00024931,2]
[336934877,1725249048783,-500.0,0.00024931,2]
[336934878,1725249048792,-5865.09,0.00024931,2]
[336934879,1725249048801,-1139.46,0.00024931,2]
[336934880,1725249048811,-1135.19,0.00024931,2]
[336934881,1725249048821,-563.65,0.00024931,2]
[336934882,1725249048830,-573.57,0.00024931,2]
[336934883,1725249048839,-1475.14,0.00024931,2]
[336934884,1725249048849,-1286.38,0.00024931,2]
[336934885,1725249048859,-2656.81,0.00024931,2]
[336934886,1725249048869,-1029.26,0.00024931,2]
[336934887,1725249048878,-950.45,0.00024931,2]
[336934888,1725249048888,-978.3,0.00024931,2]
[336934889,1725249048898,-500.0,0.00024931,2]
[336934890,1725249048907,-6599.17,0.00024931,2]
[336934891,1725249048925,-953.68,0.00024931,2]
[336934892,1725249048935,-2088.11,0.00024931,2]
[336934893,1725249048946,-1472.52,0.00024931,2]
[336934894,1725249048957,-500.0,0.00024931,2]
[336934895,1725249048970,-500.0,0.00024931,2]
[336934896,1725249048980,-909.08,0.00024931,2]
[336934897,1725249048990,-907.65,0.00024931,2]
[336934898,1725249048999,-500.0,0.00024931,2]
[336934899,1725249049013,-500.0,0.00024931,2]
[336934900,1725249049022,-500.0,0.00024931,2]
[336934901,1725249049031,-1077.12,0.00024931,2]
[336934902,1725249049041,-500.0,0.00024931,2]
[336934903,1725249049050,-500.0,0.00024931,2]
[336934904,1725249049060,-500.0,0.00024931,2]